Cogmind - Beta 13 @@@ ROGUE MODE // 2024.04.29 @ 21:18:14 Player: Gold Spoon Result: Self-destructed Performance ------------- Evolutions (2) 1000 Regions Visited (7) 1400 Robots Destroyed (51) 255 Value Destroyed (1487) 1487 Prototype IDs (26) 520 Alien Tech Used (0) 0 Bonus (300) 300 TOTAL SCORE: 4962 Bonus ------- Aligned with FarCom 300 Cogmind --------- Core Integrity 292/550 Matter 215/300 Energy 100/100 System Corruption 0% Temperature Cool (0) Movement Walking (190) Ox1 Location -8/Materials Parts ------- > --- POWER (1) -------- (None) > --- PROPULSION (2) --- Aluminum Leg Carbon-fiber Leg > --- UTILITY (5) ------ Large Storage Unit Signal Interpreter Improved Targeting Computer Improved Targeting Computer Splice Drone Bay (6/6) > --- WEAPON (3) ------- Latent Energy Streamer > --- INVENTORY (15) --- (None) Peak State ------------ > --- POWER ------------ (None) > --- PROPULSION ------- Aluminum Leg Carbon-fiber Leg > --- UTILITY ---------- Large Storage Unit Signal Interpreter Improved Targeting Computer Improved Targeting Computer Splice Drone Bay > --- WEAPON ----------- Latent Energy Streamer > --- INVENTORY -------- (None) [Rating: 27] Favorites ----------- Power Ion Engine Engine Ion Engine Propulsion Light Treads Treads Light Treads Leg Carbon-fiber Leg Utility Signal Interpreter Device Splice Drone Bay Storage Large Storage Unit Processor Signal Interpreter Protection Hardened Light Armor Plating Weapon Assault Rifle Energy Cannon Latent Energy Streamer Ballistic Gun Assault Rifle Ballistic Cannon Light Cannon Launcher Grenade Launcher Build | -11 -10 -10 -9 -9 -9 -8 -8 ------- Run | Yrd Mat Min Mat Min Exi Min Mat Slots Evolved 4 | . . . 2 . . . 2 Power . | . . . . . . . . Propulsion . | . . . . . . . . Utility 3 | . . . 2 . . . 1 Weapon 1 | . . . . . . . 1 Parts Attached 31 | 6 4 . 7 3 . . 11 Power 2 | 1 . . . 1 . . . Engine 2 | 1 . . . 1 . . . Core . | . . . . . . . . Reactor . | . . . . . . . . Propulsion 6 | 2 . . 2 . . . 2 Treads 4 | 2 . . 2 . . . . Leg 2 | . . . . . . . 2 Wheel . | . . . . . . . . Hover . | . . . . . . . . Flight . | . . . . . . . . Utility 13 | 1 2 . 2 2 . . 6 Device 2 | . . . . 1 . . 1 Storage 2 | 1 1 . . . . . . Processor 6 | . 1 . 1 . . . 4 Hackware . | . . . . . . . . Protection 3 | . . . 1 1 . . 1 Artifact . | . . . . . . . . Weapon 10 | 2 2 . 3 . . . 3 Energy Gun . | . . . . . . . . Energy Cannon 1 | . . . . . . . 1 Ballistic Gun 6 | 2 1 . 2 . . . 1 Ballistic Cannon 1 | . 1 . . . . . . Launcher 2 | . . . 1 . . . 1 Special Weapon . | . . . . . . . . Impact Weapon . | . . . . . . . . Slashing Weapon . | . . . . . . . . Piercing Weapon . | . . . . . . . . Special Melee Weapon . | . . . . . . . . Unidentified Prototypes 1 | . . . . 1 . . . Parts Lost 15 | . 1 . 4 . . . 10 Power 2 | . . . 1 . . . 1 Propulsion 4 | . . . 2 . . . 2 Utility 3 | . . . . . . . 3 Weapon 6 | . 1 . 1 . . . 4 Highest Loss Streak 5 | . 1 . 2 . . . 5 To Critical Strikes . | . . . . . . . . Average Slot Usage (%) 95 | . 93 100 95 100 100 100 64 Engine 11 | . 14 14 8 11 11 11 4 Treads 24 | . 28 28 21 22 22 22 6 Storage 12 | . 14 14 11 11 11 11 9 Processor 17 | . 10 14 22 22 22 22 22 Protection 5 | . . . 9 11 11 11 4 Ballistic Gun 17 | . 18 14 15 22 22 22 7 Ballistic Cannon 5 | . 7 14 6 . . . . Naked Turns . | . . . . . . . . Heaviest Build 38 | 14 30 30 35 35 35 35 38 Greatest Support 40 | 40 40 40 40 40 40 40 40 Greatest Overweight (x) 8 | . . . 1 . . . 8 Average Overweight (x) . | . . . . . . . . Largest Inventory Capacity 15 | 8 15 15 15 15 15 15 15 Average Capacity 13 | 6 8 15 15 15 15 15 15 Most Carried 8 | 4 8 8 8 6 7 7 7 Average Carried 5 | . 5 8 5 4 6 7 2 Final Capacity 15 | 8 15 15 15 15 15 15 15 Final Carried 8 | . 8 8 5 6 7 7 . Class Distribution -------------------- 100% | Mutant Dominant Class ---------------- Mutant | -10/Materials Mutant | -10/Mines Mutant | -9/Materials Mutant | -9/Mines Mutant | -9/Exiles Mutant | -8/Mines Mutant | -8/Materials Resources | -11 -10 -10 -9 -9 -9 -8 -8 ----------- Run | Yrd Mat Min Mat Min Exi Min Mat Matter Collected 1273 | 260 229 52 398 243 . . 91 Remotely . | . . . . . . . . Salvage Created 1733 | . 472 112 767 199 . . 183 Parts 107 | . 32 7 44 11 . . 13 Haulers Intercepted 2 | . 1 . 1 . . . . Recyclers Shooed 1 | . . . 1 . . . . Parts Field Recycled . | . . . . . . . . Retrieved Matter . | . . . . . . . . Parts Self-Destructed . | . . . . . . . . Prevented . | . . . . . . . . Kills | -11 -10 -10 -9 -9 -9 -8 -8 ------- Run | Yrd Mat Min Mat Min Exi Min Mat Combat Hostiles Destroyed 42 | . 8 5 13 8 . . 8 Guns 25 | . 8 2 5 8 . . 2 Cannons 9 | . . 3 6 . . . . AOE 8 | . . . 2 . . . 6 Classes Destroyed 12 | . 3 1 4 2 . . 2 Worker 1 | . . . 1 . . . . Builder 1 | . . . . . . . 1 Hauler 2 | . 1 . 1 . . . . Recycler 3 | . . . 3 . . . . Operator 1 | . . . 1 . . . . Watcher 6 | . 3 . 3 . . . . Swarmer 6 | . . 3 . . . . 3 Grunt 24 | . 8 2 9 2 . . 3 Duelist 1 | . . . . 1 . . . Sentry 4 | . . . 4 . . . . Hunter 2 | . . . . . . . 2 Assembled 5 | . . . . 5 . . . Best Kill Streak 10 | . 4 3 10 3 . . 9 Combat Bots Only 8 | . 3 3 4 3 . . 8 Max Kills in Single Turn 2 | . 1 1 2 1 . . 2 Gunslinging . | . . . . . . . . Exploded 2 | . . . 2 . . . 2 Melee . | . . . . . . . . Uniques/NPCs Destroyed . | . . . . . . . . Combat | -11 -10 -10 -9 -9 -9 -8 -8 -------- Run | Yrd Mat Min Mat Min Exi Min Mat Hostile Shots Fired 292 | . 53 13 78 25 . . 123 Missed 101 | . 15 7 31 6 . . 42 Damage Taken 2520 | . 527 62 566 258 . . 1107 Core 496 | . 93 . 112 33 . . 258 Absorbed by Shields . | . . . . . . . . Regen/Repaired (Parts) 58 | . 58 . . . . . . Core Remaining (%) 75 | 100 . 62 . . . 63 . Volleys Fired 155 | . 34 7 60 25 . . 29 Largest 2 | . 2 2 2 2 . . 2 Hottest 65 | . 40 55 65 43 . . 53 Shots Fired 282 | . 68 14 119 50 . . 31 Gun 228 | . 68 7 80 50 . . 23 Cannon 43 | . . 7 36 . . . . Launcher 11 | . . . 3 . . . 8 Special . | . . . . . . . . Kinetic 271 | . 68 14 116 50 . . 23 Thermal . | . . . . . . . . Explosive 11 | . . . 3 . . . 8 Electromagnetic . | . . . . . . . . Robot Hit Streak 17 | . 12 5 9 6 . . 17 Robot Miss Streak 4 | . 4 3 3 3 . . 1 Penetration Max . | . . . . . . . . Secondary Targets 1 | . 1 . . . . . . Max Gunslinging Chain 1 | . 1 . . . . . . Shots Hit Robots 181 | . 44 8 76 29 . . 24 Core Hits 101 | . 25 7 34 14 . . 21 Critical Kills 1 | . . . . 1 . . . Critical Parts Destroyed 1 | . . . . . . . 1 Critical Strikes 3 | . . . 1 1 . . 1 Destroy 2 | . . . . 1 . . 1 Blast 1 | . . . 1 . . . . Melee Attacks . | . . . . . . . . Impact . | . . . . . . . . Slashing . | . . . . . . . . Piercing . | . . . . . . . . Sneak Attacks . | . . . . . . . . Combat Hostiles . | . . . . . . . . Follow-up Attacks . | . . . . . . . . Damage Inflicted 3506 | . 549 130 1453 427 . . 947 Guns 2077 | . 549 43 764 413 . . 308 Cannons 477 | . . 84 393 . . . . Explosions 906 | . . . 296 . . . 610 Melee . | . . . . . . . . Ramming 46 | . . 3 . 14 . . 29 Kinetic 2554 | . 549 127 1157 413 . . 308 Thermal . | . . . . . . . . Explosive 906 | . . . 296 . . . 610 Electromagnetic . | . . . . . . . . Impact . | . . . . . . . . Slashing . | . . . . . . . . Piercing . | . . . . . . . . Highest Corruption . | . . . . . . . . Average Corruption . | . . . . . . . . Corruption Purged . | . . . . . . . . Corruption Blocked . | . . . . . . . . Overload Shots . | . . . . . . . . Overflow Damage 32 | . . . 19 . . . 13 Projectiles . | . . . . . . . . Explosions 32 | . . . 19 . . . 13 Melee . | . . . . . . . . Knockbacks 2 | . . . 2 . . . . Impact . | . . . . . . . . Kinetic 2 | . . . 2 . . . . Secondary . | . . . . . . . . Self-Inflicted Damage 108 | . . . . . . . 108 Shots 5 | . . . . . . . 5 Rammed 4 | . . 1 . 3 . . . Targets Rammed 15 | . . 1 . 3 . . 11 Kicked 11 | . . . . . . . 11 Crushed . | . . . . . . . . Highest Temperature 99 | . 33 17 99 24 . . 6 Average Temperature 20 | . 8 11 29 10 . . 3 Received Heat Transfer 989 | . 273 21 285 194 . . 216 Siege Activations . | . . . . . . . . Robots Corrupted . | . . . . . . . . Combat Hostiles . | . . . . . . . . Parts Fried . | . . . . . . . . Impact Corruptions . | . . . . . . . . Robots Melted . | . . . . . . . . Combat Hostiles . | . . . . . . . . Parts Melted . | . . . . . . . . Heat Transferred . | . . . . . . . . Parts Sabotaged . | . . . . . . . . Parts Stolen . | . . . . . . . . Parts Stripped . | . . . . . . . . Power Chain Reactions . | . . . . . . . . Alert | -11 -10 -10 -9 -9 -9 -8 -8 ------- Run | Yrd Mat Min Mat Min Exi Min Mat Peak Influence 419 | . 262 136 419 141 . . 167 Initial 111 | . . 1 . 111 . . . Average 89 | . 79 56 201 84 . . 90 Maximum Alert Level 2 | . 1 . 2 . . . . Low Security (%) 87 | 100 86 100 40 100 . 100 100 Level 1 11 | . 13 . 56 . . . . Level 2 . | . . . 3 . . . . Level 3 . | . . . . . . . . Level 4 . | . . . . . . . . Level 5 . | . . . . . . . . High Security . | . . . . . . . . Max Security . | . . . . . . . . Squads Dispatched 8 | . 1 . 3 . . . 4 Investigation 3 | . 1 . 1 . . . 1 Extermination . | . . . . . . . . Reinforcement 3 | . . . 2 . . . 1 Assault . | . . . . . . . . Garrison 2 | . . . . . . . 2 Intercept . | . . . . . . . . Searches Triggered . | . . . . . . . . Construction Impeded 1 | . . . . . . . 1 Haulers Reinforced . | . . . . . . . . Active Scanning Responses . | . . . . . . . . Cargo Convoy Interrupts . | . . . . . . . . Stealth | -11 -10 -10 -9 -9 -9 -8 -8 --------- Run | Yrd Mat Min Mat Min Exi Min Mat Distress Signals 5 | . 1 . 2 . . . 2 Communications Jammed . | . . . . . . . . Distress Signals . | . . . . . . . . Times Spotted 71 | . 12 5 30 9 . . 15 Peak Tracking Total 6 | . 5 3 6 2 . . 6 Tactical Retreats 2 | . . . . 1 . . 1 Traps | -11 -10 -10 -9 -9 -9 -8 -8 ------- Run | Yrd Mat Min Mat Min Exi Min Mat Traps Triggered 3 | . 3 . . . . . . Indirectly . | . . . . . . . . Trap Hack Attempts . | . . . . . . . . Triggered . | . . . . . . . . Disarmed . | . . . . . . . . Reprogrammed 4 | . 4 . . . . . . Reused 1 | . 1 . . . . . . Traps Extracted . | . . . . . . . . Installed . | . . . . . . . . Triggered 1 | . 1 . . . . . . Machines | -11 -10 -10 -9 -9 -9 -8 -8 ---------- Run | Yrd Mat Min Mat Min Exi Min Mat Machines Disabled 3 | . . . 2 1 . . . Max in Single Turn 1 | . . . 1 1 . . . Machines Repaired . | . . . . . . . . Machines Dismantled . | . . . . . . . . Machines Sabotaged . | . . . . . . . . Overloaded Fab Kills . | . . . . . . . . Hacking | -11 -10 -10 -9 -9 -9 -8 -8 --------- Run | Yrd Mat Min Mat Min Exi Min Mat Machines Accessed 15 | . 9 . 2 1 1 . 2 Terminals 12 | . 8 . 2 . . . 2 Fabricators . | . . . . . . . . Repair Stations 1 | . 1 . . . . . . Recycling Units . | . . . . . . . . Scanalyzers . | . . . . . . . . Garrison Access . | . . . . . . . . Total Hacks 34 | . 22 . 6 1 1 . 4 Successful 15 | . 10 . 2 1 1 . 1 Failed 19 | . 12 . 4 . . . 3 Catastrophic 1 | . 1 . . . . . . Database Lockouts . | . . . . . . . . Manual 1 | . . . . . 1 . . Terminals 30 | . 20 . 6 . . . 4 Fabricators . | . . . . . . . . Repair Stations 2 | . 2 . . . . . . Recycling Units . | . . . . . . . . Scanalyzers . | . . . . . . . . Garrison Access . | . . . . . . . . Terminal Hacks 13 | . 8 . 2 1 1 . 1 Robot Analysis 3 | . 3 . . . . . . Prototype ID Bank 1 | . 1 . . . . . . Open Door 1 | . . . . 1 . . . Emergency Access Points 1 | . 1 . . . . . . Alert Level 2 | . . . 1 . . . 1 Locate Traps 3 | . 2 . 1 . . . . Reprogram Traps 1 | . 1 . . . . . . Derelict Proto ID Bank 1 | . . . . . 1 . . Fabricator Hacks . | . . . . . . . . Repair Station Hacks 2 | . 2 . . . . . . Scan Component 1 | . 1 . . . . . . Repair 1 | . 1 . . . . . . Recycling Unit Hacks . | . . . . . . . . Scanalyzer . | . . . . . . . . Garrison Access Hacks . | . . . . . . . . Unauthorized Hacks . | . . . . . . . . Terminals . | . . . . . . . . Fabricators . | . . . . . . . . Repair Stations . | . . . . . . . . Recycling Units . | . . . . . . . . Scanalyzers . | . . . . . . . . Garrison Access . | . . . . . . . . Data Cores Recovered . | . . . . . . . . Used . | . . . . . . . . Hacking Detections 11 | . 7 . 2 . . . 2 Full Trace Events 5 | . 2 . 2 . . . 1 Feedback Events . | . . . . . . . . Feedback Blocked . | . . . . . . . . Robot Schematics Acquired . | . . . . . . . . Robots Built . | . . . . . . . . Authchips . | . . . . . . . . Time . | . . . . . . . . Total Robot Build Rating . | . . . . . . . . Part Schematics Acquired . | . . . . . . . . Parts Built . | . . . . . . . . Authchips . | . . . . . . . . Time . | . . . . . . . . Total Part Build Rating . | . . . . . . . . Parts Repaired 1 | . 1 . . . . . . Time 26 | . 26 . . . . . . Parts Recycled . | . . . . . . . . Recycled Matter . | . . . . . . . . Retrieved Matter . | . . . . . . . . Retrieved Components . | . . . . . . . . Parts Scanalyzed . | . . . . . . . . Part Schematics Acquired . | . . . . . . . . Parts Damaged . | . . . . . . . . Bothacking | -11 -10 -10 -9 -9 -9 -8 -8 ------------ Run | Yrd Mat Min Mat Min Exi Min Mat Used RIF Installer . | . . . . . . . . Robots Hacked . | . . . . . . . . Non-combat . | . . . . . . . . Combat . | . . . . . . . . Robot Hacks Applied . | . . . . . . . . Relay Couplers Released . | . . . . . . . . Fabnet Peak Effective % . | . . . . . . . . Robots Rewired . | . . . . . . . . Allies Hacked . | . . . . . . . . Hacks Repelled . | . . . . . . . . Allies | -11 -10 -10 -9 -9 -9 -8 -8 -------- Run | Yrd Mat Min Mat Min Exi Min Mat Total Allies . | . . . . . . . . Largest Group . | . . . . . . . . Highest-Rated Group . | . . . . . . . . Highest-Rated Ally . | . . . . . . . . Total Orders . | . . . . . . . . Ally Attacks 3 | . . . . . . . 3 Total Damage 7 | . . . . . . . 7 Kills . | . . . . . . . . Allies Corrupted . | . . . . . . . . Allies Melted . | . . . . . . . . Intel | -11 -10 -10 -9 -9 -9 -8 -8 ------- Run | Yrd Mat Min Mat Min Exi Min Mat Robot Analysis Total 3 | . 3 . . . . . . Derelict Logs Recovered 5 | . . 2 . 3 . . . Drone Launches 3 | . . . . . . . 3 Drone Recoveries 3 | . . . . . . . 3 Exploration | -11 -10 -10 -9 -9 -9 -8 -8 ------------- Run | Yrd Mat Min Mat Min Exi Min Mat Turns Passed 4267 | 58 1177 882 526 934 345 122 223 Spaces Moved 2288 | 38 631 534 210 517 216 77 65 Core 15 | 12 . . . . . . 3 Treads 2247 | 26 631 534 210 517 216 77 36 Legs 26 | . . . . . . . 26 Wheels . | . . . . . . . . Hover . | . . . . . . . . Flight . | . . . . . . . . Fastest Speed 50 | 50 160 160 160 160 160 160 120 Average Speed 160 | 125 160 160 160 160 160 160 179 Slowest Speed 450 | 160 160 160 240 160 160 160 450 Overloaded Moves . | . . . . . . . . Propulsion Burnouts . | . . . . . . . . Robots Hopped . | . . . . . . . . Cave-ins Triggered . | . . . . . . . . Exploration Rate (%) 48 | 3 96 93 31 86 41 26 11 Regions Visited 7 Branch Regions 4 Pre-discovered Areas . | . . . . . . . . Known Exits Taken 6 | . 1 1 1 1 1 1 . Unknown Exits Taken 1 | 1 . . . . . . . Scrap Searched 3 | . . 1 . 1 . 1 . Spaces Dug . | . . . . . . . . Terrain Destroyed 13 | . . . 6 . . . 7 Melee . | . . . . . . . . Projectile . | . . . . . . . . AOE 13 | . . . 6 . . . 7 Terrain Rammed . | . . . . . . . . Walls Destroyed . | . . . . . . . . Machines Disabled . | . . . . . . . . Actions | -11 -10 -10 -9 -9 -9 -8 -8 --------- Run | Yrd Mat Min Mat Min Exi Min Mat Total 2601 | 49 731 547 279 573 216 76 130 Wait 83 | . 48 6 1 22 . . 6 Move 2281 | 37 630 533 209 516 215 76 65 Hop . | . . . . . . . . Pick Up 30 | 6 13 . 2 2 1 . 6 Fast Attach . | . . . . . . . . Attach 26 | 6 3 . 5 3 . . 9 Detach 2 | . . . . 2 . . . Swap 5 | . 1 . 2 . . . 2 Drop 4 | . 2 . . . . . 2 Fire 155 | . 34 7 60 25 . . 29 Melee . | . . . . . . . . Ram . | . . . . . . . . Kick 11 | . . . . . . . 11 Crush 4 | . . 1 . 3 . . . Escape Stasis . | . . . . . . . . Rewire . | . . . . . . . . Trap . | . . . . . . . . Miscellaneous . | . . . . . . . . Route ------- -11/Scrapyard -10/Materials (discovered 4 exits: *Mat x3 / *Min) -10/Mines (discovered 2 exits: *Mat x2) -9/Materials -9/Mines (discovered 4 exits: *Mat x2 / *Exi / *Zio) -9/Exiles -8/Mines -8/Materials History --------- Turn | Location | Event 7 | -11/Scrapyard | Discovered new exit (range 15) 59 | -11/Scrapyard | Entered Materials 307 | -10/Materials | Build established: Mutant 318 | -10/Materials | Discovered new exit (range 14) 347 | -10/Materials | Identified exit to Materials 526 | -10/Materials | Discovered exit to Materials (range 14) 702 | -10/Materials | Repaired Assault Rifle 1115 | -10/Materials | Discovered exit to Materials (range 15) 1214 | -10/Materials | Discovered new exit (range 7) 1234 | -10/Materials | Identified exit to Mines 1236 | -10/Materials | Entered Mines 1336 | -10/Mines | Discovered exit to Materials (range 15) 1353 | -10/Mines | Learned Materials terminal intel 1526 | -10/Mines | Discovered exit to Materials (range 5) 1732 | -10/Mines | Learned Materials terminal intel 1913 | -10/Mines | A weapon hastily lodged in a ceiling crevice suddenly fell to the ground 2118 | -10/Mines | Entered Materials 2118 | -9/Materials | Evolved 2 slots: Utility x2 2119 | -9/Materials | Loaded intel: 11 terminal locations 2634 | -9/Materials | Discovered new exit (range 6) 2640 | -9/Materials | Identified exit to Mines 2644 | -9/Materials | Entered Mines 2645 | -9/Mines | Assembled infested the area 2647 | -9/Mines | Discovered new exit (range 13) 2650 | -9/Mines | Assisted by a Guerilla fighting off Assembled 2652 | -9/Mines | Met a Derelict bent on vengeance 2681 | -9/Mines | Identified exit to Exiles 2986 | -9/Mines | Discovered new exit (range 8) 2996 | -9/Mines | Identified exit to Materials 3000 | -9/Mines | Found the Drone Emporium 3012 | -9/Mines | Found Prototype Device 3014 | -9/Mines | Identified Splice Drone Bay 3192 | -9/Mines | A Derelict revealed a hidden shortcut to a safe place 3194 | -9/Mines | Identified exit to Zion 3351 | -9/Mines | Learned Materials emergency access door positions 3512 | -9/Mines | Learned Materials emergency access door positions 3568 | -9/Mines | Deemed a non-threat by the Exiles lab entrance 3578 | -9/Mines | Entered Exiles 3615 | -9/Exiles | Met 8R-AWN 3644 | -9/Exiles | Met EX-HEX 3687 | -9/Exiles | Met EX-BIN 3710 | -9/Exiles | Aligned with FarCom system 3711 | -9/Exiles | Given EX-Vault access code 3748 | -9/Exiles | Opened EX-Vault 3762 | -9/Exiles | Found Latent Energy Streamer 3800 | -9/Exiles | Warned to stay clear of 0b10 Research branches 3901 | -9/Exiles | Discovered new exit (range 14) 3922 | -9/Exiles | Identified exit to Mines 3923 | -9/Exiles | Left Exiles lab with Latent Energy Streamer 3923 | -9/Exiles | Entered Mines 4027 | -8/Mines | Discovered exit to Materials (range 8) 4045 | -8/Mines | Entered Materials 4045 | -8/Materials | Evolved 2 slots: Utility x1, Weapon x1 4047 | -8/Materials | Loaded intel: 12 terminal locations 4105 | -8/Materials | Garrison activated, responded to threat 4148 | -8/Materials | Lost 4 parts (1n1u2w) 4191 | -8/Materials | Lost 5 parts (1p1n2u1w) 4205 | -8/Materials | Destroyed 8 combat bots 4268 | -8/Materials | Self-destructed Last Messages --------------- Splice Drone released from Splice Drone Bay. Splice Drone retrieved by Splice Drone Bay. U-05 Engineer lays Concrete. S-10 Pest springs to life. Splice Drone retrieved by Splice Drone Bay. U-05 Engineer lays Concrete. Splice Drone retrieved by Splice Drone Bay. U-05 Engineer lays Concrete. K-01 Serf collects debris. Kicked S-10 Pest. Kicked S-10 Pest out of the way. Recycling unit begins recycling process. Kicked S-10 Pest out of the way. U-05 Engineer lays Concrete. Kicked S-10 Pest out of the way. U-05 Engineer lays Concrete. Kicked S-10 Pest. U-05 Engineer lays Concrete. Kicked S-10 Pest. K-01 Serf collects debris. Map ----- +----------------------------------------------------+ | | | | | | | | | ?????????????????????????????????????????????????? | | ?????????????????????????????????????????????????? | | ?????????????????????????????????????????????????? | | ?????????????????????????????????????????????????? | | ??+??????????????????????????????????????????????? | | ?????????????????????????????????????????????????? | | ?????????????????????????????????????????????????? | | ?????????????????????????????????????????????????? | | ????????????????????????????######???????????????? | | ????????????????????????????# #?????+######???? | | ???????????????????"T"??????# #???? ????? | | ???????????????????"""??????# ##### #???????? | | ????????????????????????????# #???????? | | ????????????????????????????# #???????? | | ????????????????????????????# """"" #???????? | | ????"??????????????????###### ""T"" #???????? | | ????T??????????????????# ## #???????? | | ????"??????????????????# " ## #???????? | | ???????????????????????# T ## #???????? | | ???????????????????????# " #" """" ?? | | T?????????????# ???????#s #T """" ? | | ??????????????# ??????# @ #" """" ########? | | ???????????????? ?????#ss ## #???????? | | ??????????????#+##/######k### #???????? | | ??????????????# #???????? | | ??????????????+|% #???????? | | ??????????????# #???????? | | ??????????????####### #???????? | | ????????????????????# ########???????? | | ????????????????????# ""#????????????? | | ????????????????????# % Y"#????????????? | | ????????????????????# ""#????????????? | | ????????????????????#[ ###????????????? | | ????????????????????#[ u % ##?????????????? | | ????????????????????# " ##?????????????? | | ????????????????????# t %" #??????????????? | | ????????????????? %+ #??????????????? | | ??????????????"" # % ##?????????????? | | ??????????????"" # ##?????????????? | | ????????????? ?# % ????????????? | | ?????????????######?# ??????????? | | ???????????????????+ ??????????? | | ???????????????????# #??????????? | | ???????????????????# /= #??????????? | | ???????????????????+ = #??????????? | | ???????????????????# ???????????? | +----------------------------------------------------+ Best States ------------- Heat Dissipation 31 Energy Generation 10 Energy Capacity 250 Matter Stores 300 Matter Capacity 300 Sight Range 16 Terrain Scan Density 10 Armor Coverage 225 Evasion (%) 50 Targeting Accuracy 12 Recoil Reduction 2 Item Schematics ----------------- None Robot Schematics ------------------ None Fabricated ------------ Nothing Alien Tech Used ----------------- None Achievements -------------- None Challenges ------------ None Game ------ Seed SpectralThermalSplitter Manual? 0 Play Time 00:26:53 Cumulative 24.5 hours Start 2024.04.29 @ 20:54:15 End 2024.04.29 @ 21:18:14 Sessions 1 Manual Loads 0 Difficulty Rogue Special Mode None Game No. 38 Rogue 36 Adventurer 2 Explorer 0 Win Type - Total 0 Types 0/0/0/0/0/0/0/0/0 Lore% 27 Gallery% 21 Achievement% 21 Wizard Run 0 Options --------- Layout 1 ASCII 0 Keyboard 0 Movement Mouse Keybinds 0 Fullscreen 1 Font 24/Smallcaps Map View 50x40 Zoom Use 0% Tactical HUD 0 Map Filters NONE Filters NONE Steam 1 RUN: 0d62a251-2466-4291-89fa-830095b26c8f